[Event "FIDE CB Open 2022"]
[Site "Ceske Budejovice"]
[Date "2022.07.01"]
[Round "1.51"]
[White "Rosol, Alexander"]
[Black "Smola, David"]
[Result "1-0"]
[ECO "C56"]
[WhiteElo "2001"]
[BlackElo "1609"]
[Annotator "NA RC"]
[PlyCount "75"]
[EventDate "2022.07.01"]
[EventType "swiss"]
[EventCountry "CZE"]
[SourceTitle "playchess.com"]
[Source "ChessBase"]
[SourceQuality "1"]
[TimeControl "40/5400+30:1800+30"]

1. e4 {[%emt 0:00:07]} e5 {[%emt 0:00:25]} 2. Nf3 {[%emt 0:00:09]} Nc6 {[%emt 0:00:17]} 3. d4 {[%emt 0:00:11]} exd4 {[%emt 0:01:09]} 4. Bc4 {[%emt 0:00:14]} Nf6 {[%emt 0:02:23]} 5. O-O {[%emt 0:00:16]} d5 {[%emt 0:03:22]} 6. exd5 {[%emt 0:04:06]} Nxd5 {[%emt 0:01:21]} 7. Nxd4 {[%emt 0:02:30]} Ndb4 {[%emt 0:07:54]} 8. Qf3 {[%emt 0:13:34]} Qf6 {[%emt 0:09:30]} 9. Re1+ {[%emt 0:06:21]} Be7 {[%emt 0:01:22]} 10. Qxf6 {[%emt 0:02:47]} gxf6 {[%emt 0:00:48]} 11. Nxc6 {[%emt 0:00:43]} Nxc6 {[%emt 0:02:06]} 12. Bf4 {[%emt 0:02:45]} Nd4 {[%emt 0:07:28]} 13. Na3 {[%emt 0:01:44]} Be6 {[%emt 0:06:36]} 14. Rad1 {[%emt 0:19:09]} O-O-O {[%emt 0:05:22]} 15. Bxe6+ {[%emt 0:08:40]} Nxe6 {[%emt 0:06:23]} 16. Be3 {[%emt 0:00:49]} Bxa3 {[%emt 0:01:41]} 17. bxa3 {[%emt 0:01:09]} Rhe8 {[%emt 0:01:44]} 18. f3 {[%emt 0:01:37]} b6 {[%emt 0:07:28]} 19. Kf2 {[%emt 0:00:16]} c6 {[%emt 0:02:14]} 20. a4 {[%emt 0:00:39]} Nc7 {[%emt 0:03:29]} 21. c4 {[%emt 0:03:55]} Re5 {[%emt 0:05:48]} 22. Rxd8+ {[%emt 0:08:11]} Kxd8 {[%emt 0:00:25]} 23. Rd1+ {[%emt 0:00:06]} Kc8 {[%emt 0:01:08]} 24. Rd6 {[%emt 0:00:43]} Re6 {[%emt 0:00:53]} 25. Rd4 {[%emt 0:00:55]} Ne8 {[%emt 0:06:08]} 26. Rh4 {[%emt 0:01:42]} Nd6 {[%emt 0:02:09]} 27. Rxh7 {[%emt 0:03:50]} Nxc4 {[%emt 0:00:08]} 28. Bf4 {[%emt 0:00:15]} Re7 {[%emt 0:00:46]} 29. Rh6 {[%emt 0:00:49]} Re6 {[%emt 0:02:48]} 30. Rh8+ {[%emt 0:00:24]} Kb7 {[%emt 0:01:55]} 31. h4 {[%emt 0:00:44]} c5 {[%emt 0:01:44]} 32. h5 {[%emt 0:00:21]} Ne5 {[%emt 0:00:58]} 33. Rd8 {[%emt 0:03:30]} Kc7 {[%emt 0:03:34]} 34. Rf8 {[%emt 0:00:20]} Kd7 {[%emt 0:02:56]} 35. h6 {[%emt 0:01:08]} Ng6 {[%emt 0:01:36]} 36. h7 {[%emt 0:00:27]} Re8 {[%emt 0:01:08]} 37. Rxe8 {[%emt 0:00:15]} Kxe8 {[%emt 0:00:27]} 38. Bh6 {[%emt 0:00:10]} 1-0

[Event "FIDE CB Open 2022"]
[Site "Ceske Budejovice"]
[Date "2022.07.01"]
[Round "1.52"]
[White "Jilek, Marcel"]
[Black "Vilimek, Vit"]
[Result "0-1"]
[ECO "A52"]
[WhiteElo "1565"]
[BlackElo "1996"]
[Annotator "NA RC"]
[PlyCount "65"]
[EventDate "2022.07.01"]
[EventType "swiss"]
[EventCountry "CZE"]
[SourceTitle "playchess.com"]
[Source "ChessBase"]
[SourceQuality "1"]
[TimeControl "40/5400+30:1800+30"]

1. d4 {[%emt 0:00:06]} Nf6 {[%emt 0:00:09]} 2. c4 {[%emt 0:00:11]} e5 {[%emt 0:00:07]} 3. dxe5 {[%emt 0:01:03]} Ng4 {[%emt 0:00:02]} 4. b3 {[%emt 0:06:09]} Bc5 {[%emt 0:01:17]} 5. e3 {[%emt 0:01:23]} Nxe5 {[%emt 0:00:08]} 6. Bb2 {[%emt 0:03:20]} Qe7 {[%emt 0:01:26]} 7. Be2 {[%emt 0:03:17]} O-O {[%emt 0:00:17]} 8. Nf3 {[%emt 0:00:24]} Nbc6 {[%emt 0:00:38]} 9. O-O {[%emt 0:00:52]} a5 {[%emt 0:01:05]} 10. Nc3 {[%emt 0:00:12]} d6 {[%emt 0:02:12]} 11. Qc2 {[%emt 0:01:43]} Nxf3+ {[%emt 0:02:01]} 12. Bxf3 {[%emt 0:00:13]} Ne5 {[%emt 0:00:02]} 13. Be2 {[%emt 0:04:13]} f5 {[%emt 0:02:43]} 14. Nd5 {[%emt 0:01:51]} Qf7 {[%emt 0:00:18]} 15. f4 {[%emt 0:03:42]} Nc6 {[%emt 0:03:39]} 16. Rf3 {[%emt 0:00:45]} Kh8 {[%emt 0:17:23]} 17. Rg3 {[%emt 0:04:19]} Rg8 {[%emt 0:01:53]} 18. Rg5 {[%emt 0:07:16]} Nb4 {[%emt 0:12:21]} 19. Nxb4 {[%emt 0:10:26]} Bxe3+ {[%emt 0:00:47]} 20. Kh1 {[%emt 0:00:09]} axb4 {[%emt 0:03:53]} 21. Bh5 {[%emt 0:00:12]} Qd7 {[%emt 0:08:30]} 22. Qe2 {[%emt 0:00:44]} Bxf4 {[%emt 0:04:20]} 23. Rg6 {[%emt 0:03:33]} Qd8 {[%emt 0:08:01]} 24. Rf1 {[%emt 0:01:17]} hxg6 {[%emt 0:15:24]} 25. Rxf4 {[%emt 0:02:04]} Qg5 {[%emt 0:02:23]} 26. Bxg6 {[%emt 0:00:21]} Rf8 {[%emt 0:03:45]} 27. Bf7 {[%emt 0:06:02]} Bd7 {[%emt 0:05:39]} 28. h4 {[%emt 0:01:04]} Qh6 {[%emt 0:00:39]} 29. Qe7 {[%emt 0:00:09]} Rae8 {[%emt 0:02:44]} 30. Bxe8 {[%emt 0:02:00]} Rxe8 {[%emt 0:00:02]} 31. Qxd7 {[%emt 0:00:11]} Re1+ {[%emt 0:00:11]} 32. Kh2 {[%emt 0:00:07]} Qxf4+ {[%emt 0:00:05]} 33. Kh3 {[%emt 0:00:05]} 0-1

[Event "FIDE CB Open 2022"]
[Site "Ceske Budejovice"]
[Date "2022.07.01"]
[Round "1.53"]
[White "Sadek, Vojtech"]
[Black "Kukacka, Ladislav"]
[Result "1-0"]
[ECO "B09"]
[WhiteElo "1973"]
[BlackElo "1555"]
[Annotator "NA RC"]
[PlyCount "55"]
[EventDate "2022.07.01"]
[EventType "swiss"]
[EventCountry "CZE"]
[SourceTitle "playchess.com"]
[Source "ChessBase"]
[SourceQuality "1"]
[TimeControl "40/5400+30:1800+30"]

1. e4 {[%emt 0:10:25]} d6 {[%emt 0:00:37]} 2. d4 {[%emt 0:00:05]} Nf6 {[%emt 0:00:38]} 3. Nc3 {[%emt 0:00:05]} g6 {[%emt 0:00:47]} 4. f4 {[%emt 0:00:07]} Bg7 {[%emt 0:01:58]} 5. Nf3 {[%emt 0:00:06]} O-O {[%emt 0:00:58]} 6. Bd3 {[%emt 0:01:48]} b6 {[%emt 0:02:15]} 7. e5 {[%emt 0:14:36]} dxe5 {[%emt 0:01:21]} 8. fxe5 {[%emt 0:00:02]} Nfd7 {[%emt 0:04:25]} 9. Be4 {[%emt 0:01:25]} c6 {[%emt 0:01:01]} 10. h4 {[%emt 0:00:20]} f5 {[%emt 0:03:07]} 11. Bd3 {[%emt 0:00:37]} h6 {[%emt 0:06:26]} 12. h5 {[%emt 0:02:09]} Qe8 {[%emt 0:03:05]} 13. Bf4 {[%emt 0:04:27]} Ba6 {[%emt 0:06:11]} 14. hxg6 {[%emt 0:01:22]} Bxd3 {[%emt 0:02:48]} 15. Qxd3 {[%emt 0:00:07]} Qxg6 {[%emt 0:00:48]} 16. O-O-O {[%emt 0:00:09]} b5 {[%emt 0:05:00]} 17. Kb1 {[%emt 0:01:17]} Na6 {[%emt 0:01:42]} 18. Qe3 {[%emt 0:02:25]} Nb4 {[%emt 0:06:33]} 19. a3 {[%emt 0:00:51]} Nxc2 {[%emt 0:01:47]} 20. Kxc2 {[%emt 0:01:22]} Qxg2+ {[%emt 0:00:30]} 21. Kb1 {[%emt 0:00:13]} Nb6 {[%emt 0:01:33]} 22. Rdg1 {[%emt 0:00:44]} Qxb2+ {[%emt 0:02:24]} 23. Kxb2 {[%emt 0:00:31]} Nc4+ {[%emt 0:00:14]} 24. Ka2 {[%emt 0:00:07]} Nxe3 {[%emt 0:00:28]} 25. Bxe3 {[%emt 0:00:21]} a5 {[%emt 0:01:14]} 26. Bxh6 {[%emt 0:00:16]} b4 {[%emt 0:01:38]} 27. Rxg7+ {[%emt 0:00:09]} Kh8 {[%emt 0:00:16]} 28. Nh4 {[%emt 0:00:03]} 1-0

[Event "FIDE CB Open 2022"]
[Site "Ceske Budejovice"]
[Date "2022.07.01"]
[Round "1.54"]
[White "Krejci, Vera Marie"]
[Black "Hosnedl, Matyas"]
[Result "0-1"]
[ECO "C01"]
[WhiteElo "1554"]
[BlackElo "1967"]
[Annotator "NA RC"]
[PlyCount "82"]
[EventDate "2022.07.01"]
[EventType "swiss"]
[EventCountry "CZE"]
[SourceTitle "playchess.com"]
[Source "ChessBase"]
[SourceQuality "1"]
[TimeControl "40/5400+30:1800+30"]

1. e4 {[%emt 0:00:03]} e6 {[%emt 0:00:07]} 2. d4 {[%emt 0:00:05]} d5 {[%emt 0:00:24]} 3. Bd3 {[%emt 0:00:12]} c5 {[%emt 0:00:35]} 4. dxc5 {[%emt 0:04:35]} Bxc5 {[%emt 0:00:21]} 5. exd5 {[%emt 0:00:38]} exd5 {[%emt 0:00:41]} 6. Qe2+ {[%emt 0:02:14]} Be6 {[%emt 0:00:50]} 7. Nf3 {[%emt 0:00:53]} Nf6 {[%emt 0:00:32]} 8. O-O {[%emt 0:02:56]} O-O {[%emt 0:00:31]} 9. Bg5 {[%emt 0:08:40]} h6 {[%emt 0:01:03]} 10. Bh4 {[%emt 0:00:15]} Nc6 {[%emt 0:00:34]} 11. a3 {[%emt 0:02:38]} Bg4 {[%emt 0:05:08]} 12. Nbd2 {[%emt 0:04:58]} Re8 {[%emt 0:02:47]} 13. Qd1 {[%emt 0:00:15]} g5 {[%emt 0:00:08]} 14. Bg3 {[%emt 0:00:38]} Ne4 {[%emt 0:00:09]} 15. Qc1 {[%emt 0:03:05]} Nxg3 {[%emt 0:15:34]} 16. hxg3 {[%emt 0:00:08]} Qd6 {[%emt 0:00:37]} 17. b4 {[%emt 0:02:04]} Bb6 {[%emt 0:01:05]} 18. Qb2 {[%emt 0:00:22]} Qxg3 {[%emt 0:01:29]} 19. Kh1 {[%emt 0:19:57]} Bxf2 {[%emt 0:03:09]} 20. Rxf2 {[%emt 0:11:19]} Qxf2 {[%emt 0:00:42]} 21. Rf1 {[%emt 0:00:08]} Qe3 {[%emt 0:01:03]} 22. Qf6 {[%emt 0:05:28]} Qe6 {[%emt 0:00:58]} 23. Qa1 {[%emt 0:01:25]} Rad8 {[%emt 0:07:15]} 24. b5 {[%emt 0:08:12]} Na5 {[%emt 0:03:23]} 25. Qd4 {[%emt 0:03:10]} Bh5 {[%emt 0:03:54]} 26. Qxa7 {[%emt 0:04:58]} b6 {[%emt 0:01:48]} 27. Qc7 {[%emt 0:02:57]} Rc8 {[%emt 0:01:46]} 28. Qh2 {[%emt 0:00:42]} Bg6 {[%emt 0:04:45]} 29. Re1 {[%emt 0:06:44]} Qxe1+ {[%emt 0:01:46]} 30. Nxe1 {[%emt 0:00:22]} Rxe1+ {[%emt 0:00:05]} 31. Bf1 {[%emt 0:00:18]} Nc4 {[%emt 0:00:16]} 32. Qg3 {[%emt 0:01:41]} Rce8 {[%emt 0:01:52]} 33. Nxc4 {[%emt 0:01:05]} Rxf1+ {[%emt 0:00:15]} 34. Kh2 {[%emt 0:00:06]} dxc4 {[%emt 0:00:22]} 35. Qc7 {[%emt 0:00:15]} Re6 {[%emt 0:01:41]} 36. Qxc4 {[%emt 0:00:19]} Rf2 {[%emt 0:00:17]} 37. c3 {[%emt 0:00:35]} Ree2 {[%emt 0:00:42]} 38. Qc8+ {[%emt 0:03:38]} Kg7 {[%emt 0:00:35]} 39. Qc7 {[%emt 0:00:40]} Rxg2+ {[%emt 0:00:31]} 40. Kh1 {[%emt 0:00:05]} Rg4 {[%emt 0:00:43]} 41. Qxb6 {[%emt 0:30:32]} Be4# {[%emt 0:30:08]} 0-1

[Event "FIDE CB Open 2022"]
[Site "Ceske Budejovice"]
[Date "2022.07.01"]
[Round "1.55"]
[White "Zauner, Christoph"]
[Black "Hladky, Mikulas"]
[Result "1-0"]
[ECO "A45"]
[WhiteElo "1963"]
[BlackElo "1549"]
[Annotator "NA RC"]
[PlyCount "43"]
[EventDate "2022.07.01"]
[EventType "swiss"]
[EventCountry "CZE"]
[SourceTitle "playchess.com"]
[Source "ChessBase"]
[SourceQuality "1"]
[TimeControl "40/5400+30:1800+30"]

1. d4 {[%emt 0:00:08]} Nf6 {[%emt 0:00:11]} 2. Bf4 {[%emt 0:00:10]} e6 {[%emt 0:00:23]} 3. Nd2 {[%emt 0:02:18]} b6 {[%emt 0:00:17]} 4. e4 {[%emt 0:00:54]} Bb7 {[%emt 0:00:24]} 5. Bd3 {[%emt 0:00:58]} Be7 {[%emt 0:02:06]} 6. Nh3 {[%emt 0:06:42]} O-O {[%emt 0:04:28]} 7. c4 {[%emt 0:08:04]} d5 {[%emt 0:01:54]} 8. e5 {[%emt 0:08:12]} Ne4 {[%emt 0:01:31]} 9. Qc2 {[%emt 0:13:19]} Nxd2 {[%emt 0:01:03]} 10. Bxh7+ {[%emt 0:02:12]} Kh8 {[%emt 0:00:18]} 11. Bxd2 {[%emt 0:00:10]} dxc4 {[%emt 0:00:26]} 12. Be4 {[%emt 0:05:49]} Bxe4 {[%emt 0:00:52]} 13. Qxe4 {[%emt 0:00:05]} Qd5 {[%emt 0:00:09]} 14. Qg4 {[%emt 0:05:06]} Rd8 {[%emt 0:01:27]} 15. O-O-O {[%emt 0:03:19]} Qxd4 {[%emt 0:02:58]} 16. Qh5+ {[%emt 0:00:15]} Kg8 {[%emt 0:00:32]} 17. Ng5 {[%emt 0:05:17]} Ba3 {[%emt 0:02:32]} 18. Qxf7+ {[%emt 0:00:58]} Kh8 {[%emt 0:00:30]} 19. Qh5+ {[%emt 0:00:06]} Kg8 {[%emt 0:00:06]} 20. Qh7+ {[%emt 0:00:28]} Kf8 {[%emt 0:00:05]} 21. Qh8+ {[%emt 0:00:17]} Ke7 {[%emt 0:00:20]} 22. Qxg7+ {[%emt 0:00:12]} 1-0

[Event "FIDE CB Open 2022"]
[Site "Ceske Budejovice"]
[Date "2022.07.02"]
[Round "2.1"]
[White "Hofstadler, Mario"]
[Black "Roshka, Yevgeniy"]
[Result "0-1"]
[ECO "E90"]
[WhiteElo "2123"]
[BlackElo "2497"]
[Annotator "RC"]
[PlyCount "107"]
[EventDate "2022.07.01"]
[EventType "swiss"]
[EventCountry "CZE"]
[SourceTitle "playchess.com"]
[Source "ChessBase"]
[SourceQuality "1"]
[TimeControl "40/5400+30:1800+30"]

1. d4 {[%emt 0:00:42]} Nf6 {[%emt 0:00:30]} 2. Nf3 {[%emt 0:00:12]} c5 {[%emt 0:00:08]} 3. d5 {[%emt 0:01:03]} e6 {[%emt 0:01:53]} 4. c4 {[%emt 0:09:23]} d6 {[%emt 0:00:06]} 5. Nc3 {[%emt 0:00:19]} g6 {[%emt 0:00:11]} 6. e4 {[%emt 0:03:25]} Bg7 {[%emt 0:00:40]} 7. Bd3 {[%emt 0:02:38]} O-O {[%emt 0:00:07]} 8. O-O {[%emt 0:00:17]} Na6 {[%emt 0:00:04]} 9. h3 {[%emt 0:01:45]} Nc7 {[%emt 0:00:02]} 10. Re1 {[%emt 0:01:36]} Re8 {[%emt 0:02:37]} 11. Bg5 {[%emt 0:10:35]} h6 {[%emt 0:00:45]} 12. Bd2 {[%emt 0:00:53]} exd5 {[%emt 0:00:31]} 13. exd5 {[%emt 0:02:17]} b5 {[%emt 0:00:47]} 14. cxb5 {[%emt 0:27:09]} Bb7 {[%emt 0:02:12]} 15. Bc4 {[%emt 0:04:04]} Nd7 {[%emt 0:12:58]} 16. Rxe8+ {[%emt 0:08:51]} Qxe8 {[%emt 0:00:29]} 17. Bf4 {[%emt 0:00:18]} Bxc3 {[%emt 0:03:05]} 18. bxc3 {[%emt 0:00:06]} Qe4 {[%emt 0:00:09]} 19. Bxd6 {[%emt 0:00:05]} Qxc4 {[%emt 0:02:45]} 20. Bxc7 {[%emt 0:00:32]} Bxd5 {[%emt 0:00:08]} 21. Qd2 {[%emt 0:07:52]} Bxf3 {[%emt 0:23:24]} 22. gxf3 {[%emt 0:01:10]} Qxb5 {[%emt 0:00:02]} 23. Rd1 {[%emt 0:00:46]} Nf8 {[%emt 0:02:34]} 24. Qxh6 {[%emt 0:05:55]} Qe2 {[%emt 0:00:19]} 25. Rd2 {[%emt 0:00:05]} Qxf3 {[%emt 0:00:17]} 26. Be5 {[%emt 0:00:08]} f6 {[%emt 0:00:08]} 27. Bd6 {[%emt 0:00:14]} Re8 {[%emt 0:00:22]} 28. Kh2 {[%emt 0:00:41]} Qf5 {[%emt 0:01:45]} 29. Bxf8 {[%emt 0:05:09]} Rxf8 {[%emt 0:00:01]} 30. Qe3 {[%emt 0:01:35]} Kf7 {[%emt 0:00:06]} 31. Re2 {[%emt 0:00:35]} Kg7 {[%emt 0:00:17]} 32. Qe4 {[%emt 0:01:29]} Qc8 {[%emt 0:03:17]} 33. Qf4 {[%emt 0:01:13]} Rf7 {[%emt 0:00:21]} 34. Rb2 {[%emt 0:00:45]} Qc6 {[%emt 0:01:20]} 35. Rb8 {[%emt 0:01:01]} Re7 {[%emt 0:00:14]} 36. Qh4 {[%emt 0:01:02]} Qc7+ {[%emt 0:00:12]} 37. Qg3 {[%emt 0:00:06]} Qc6 {[%emt 0:01:39]} 38. Qh4 {[%emt 0:00:27]} Qd6+ {[%emt 0:00:15]} 39. Qg3 {[%emt 0:00:07]} Qd5 {[%emt 0:00:33]} 40. Rc8 {[%emt 0:02:54]} Qf5 {[%emt 0:14:31]} 41. Rc7 {[%emt 0:07:01]} Rxc7 {[%emt 0:00:20]} 42. Qxc7+ {[%emt 0:00:07]} Kh6 {[%emt 0:00:02]} 43. Kg2 {[%emt 0:08:11]} Qe4+ {[%emt 0:06:36]} 44. Kg1 {[%emt 0:15:15]} Qe1+ {[%emt 0:10:47]} 45. Kh2 {[%emt 0:00:30]} Qxc3 {[%emt 0:00:30]} 46. Qxa7 {[%emt 0:00:30]} c4 {[%emt 0:00:30]} 47. Qc5 {[%emt 0:00:30]} Qd3 {[%emt 0:00:30]} 48. Qf8+ {[%emt 0:00:30]} Kg5 {[%emt 0:00:30]} 49. Qc5+ {[%emt 0:00:30]} Kf4 {[%emt 0:00:30]} 50. Kg2 {[%emt 0:00:30]} c3 {[%emt 0:01:21]} 51. a4 {[%emt 0:00:44]} c2 {[%emt 0:00:53]} 52. a5 {[%emt 0:00:11]} Qe4+ {[%emt 0:01:21]} 53. Kh2 {[%emt 0:01:41]} Kf3 {[%emt 0:00:41]} 54. a6 {[%emt 0:00:30]} 0-1

[Event "FIDE CB Open 2022"]
[Site "Ceske Budejovice"]
[Date "2022.07.02"]
[Round "2.2"]
[White "Prazak, Daniel"]
[Black "Velicka, Petr"]
[Result "0-1"]
[ECO "B40"]
[WhiteElo "2113"]
[BlackElo "2384"]
[Annotator "TA"]
[PlyCount "130"]
[EventDate "2022.07.01"]
[EventType "swiss"]
[EventCountry "CZE"]
[SourceTitle "playchess.com"]
[Source "ChessBase"]
[SourceQuality "1"]
[TimeControl "40/5400+30:1800+30"]

{[%evp 9,130,11,10,4,8,0,0,0,0,0,0,-1,0,-17,-6,-8,0,0,-14,-54,-31,-52,29,-201,0,0,0,0,0,0,0,0,0,-7,-6,-16,0,0,0,0,0,0,8,13,10,0,0,0,10,0,23,6,11,0,-4,-6,-6,-12,0,0,0,-6,0,-16,-16,-18,0,0,0,0,0,0,0,0,0,0,0,0,0,0,0,-12,-12,-107,-107,-133,0,-133,45,-300,-260,-1231,-325,-325,0,0,0,0,0,0,0,-407,-429,-545,-473,-502,-401,-1202,-701,-1346,-1272,-29963,-29965,-1078,-1046,-29965,-29966,-29963,-29964,-29961,-6060,-5069,-1035]} 1. e4 {[%emt 0:00:08]} c5 {[%emt 0:00:04]} 2. Nf3 {[%emt 0:00:26]} e6 {[%emt 0:00:05]} 3. g3 {[%emt 0:05:39]} Nc6 {[%emt 0:00:24]} 4. Bg2 {[%emt 0:00:20]} Nf6 {[%emt 0:00:08]} 5. Qe2 {[%emt 0:00:19]} e5 {[%emt 0:00:28]} 6. O-O {[%emt 0:01:42] B40: Sicilian: 2...e6, Unusual lines.} Be7 {[%emt 0:00:45]} 7. c3 {[%emt 0:01:58]} O-O {[%emt 0:00:58]} 8. Na3 {[%emt 0:05:09] The position is equal. 8.Na3 is better than 8.Rd1.} Re8 {[%emt 0:05:37]} 9. d3 {[%emt 0:09:54]} h6 {[%emt 0:03:37]} 10. Nc4 {[%emt 0:07:43]} Bf8 {[%emt 0:00:36]} 11. Ne3 {[%emt 0:03:16]} d5 {[%emt 0:08:29]} 12. exd5 {[%emt 0:13:30]} Nxd5 {[%emt 0:00:09]} 13. Nxd5 {[%emt 0:01:09]} Qxd5 {[%emt 0:00:11]} 14. Be3 {[%emt 0:02:25] [#]} Bf5 $146 {[%emt 0:04:54]} ({Predecessor:} 14... Bg4 15. h3 Bh5 16. g4 Bg6 17. Nd4 Nxd4 18. cxd4 Qd8 19. d5 Qh4 20. Rac1 b6 {0-1 (37) Martin Barcelo,C (2258)-Fantinel,T (2375) Barcelona 2021}) 15. Rfd1 {[%emt 0:03:48]} Rad8 {[%emt 0:10:24] [#]} (15... Qd7 $15) 16. Nd4 $2 {[%emt 0:07:04]} Nxd4 $2 {[%emt 0:00:19]} (16... Qxg2+ $1 $19 17. Kxg2 exd4) 17. cxd4 $11 {[%emt 0:00:27]} Qd7 {[%emt 0:04:39]} 18. dxc5 {[%emt 0:03:17]} Bxd3 {[%emt 0:00:42]} 19. Qd2 {[%emt 0:03:30]} e4 {[%emt 0:02:21]} 20. Qa5 {[%emt 0:04:49]} a6 {[%emt 0:06:37]} 21. Rd2 {[%emt 0:03:42][%cal Og2e4]} Qc8 {[%emt 0:06:56]} 22. Rad1 {[%emt 0:02:38]} Be7 {[%emt 0:00:30]} 23. Bf1 {[%emt 0:06:18][%cal Rf1d3]} Bxf1 {[%emt 0:01:09]} 24. Kxf1 {[%emt 0:00:22]} Rxd2 {[%emt 0:00:59]} 25. Rxd2 {[%emt 0:00:35]} Rd8 {[%emt 0:04:45]} 26. Rxd8+ {[%emt 0:04:24]} Bxd8 {[%emt 0:00:13][%mdl 4096] Endgame KQB-KQB} 27. Qa4 {[%emt 0:02:33]} Qc6 {[%emt 0:05:28] Against Qe8+} 28. Qc2 {[%emt 0:04:35]} Qb5+ {[%emt 0:11:55]} 29. Kg2 {[%emt 0:00:19]} Bf6 {[%emt 0:04:30]} 30. Qxe4 {[%emt 0:01:13]} Bxb2 {[%emt 0:00:30]} 31. Qf5 {[%emt 0:02:06]} Qc6+ {[%emt 0:01:14]} 32. f3 {[%emt 0:00:10]} g6 {[%emt 0:02:37]} 33. Qf4 {[%emt 0:00:37]} Bg7 {[%emt 0:01:41]} 34. Qb8+ {[%emt 0:00:41]} Kh7 {[%emt 0:00:08]} 35. Qd6 {[%emt 0:00:32]} h5 {[%emt 0:03:49]} 36. Qe7 {[%emt 0:00:28]} Qd5 {[%emt 0:01:45]} 37. a4 {[%emt 0:00:32]} Qe5 {[%emt 0:04:32]} (37... Be5 {keeps more tension.} 38. Bf2 Kg7 39. h3 Bc3) 38. Qxe5 {[%emt 0:00:18]} Bxe5 {[%emt 0:00:05] KB-KB} 39. f4 {[%emt 0:00:12]} Bc7 {[%emt 0:00:35]} 40. Kf3 {[%emt 0:00:59]} f5 {[%emt 0:00:10]} 41. Ke2 {[%emt 0:20:06]} Kg8 {[%emt 0:03:40]} 42. Kd3 {[%emt 0:00:30] And now Kc4 would win.} Kf7 {[%emt 0:00:30]} 43. Kc4 {[%emt 0:00:30][%cal Oc5c6] Strongly threatening c6!} Ke6 {[%emt 0:00:30]} 44. Bd2 {[%emt 0:00:30]} Bd8 {[%emt 0:00:30]} 45. Bc3 {[%emt 0:00:30]} h4 {[%emt 0:00:30][%cal Bh5h4,Bh4h3][%mdl 32]} 46. Be1 {[%emt 0:00:30]} (46. gxh4 $1 $11 Bxh4 47. Ba5) 46... h3 $17 {[%emt 0:00:30]} 47. Bd2 {[%emt 0:00:30]} Be7 {[%emt 0:00:30]} (47... Bc7 $1 $17) 48. Kd4 {[%emt 0:00:30]} (48. Bc1 $11) 48... g5 $2 {[%emt 0:02:03]} ({Black should play} 48... Bf6+ $17 49. Kc4 Be7) 49. Kc4 $2 {[%emt 0:03:33][%mdl 8192]} (49. fxg5 $14 {was the only good move.} Bd8 50. Bf4) 49... gxf4 $1 $19 {[%emt 0:00:41]} 50. gxf4 {[%emt 0:00:24]} (50. Bxf4 Bd8 51. Kd4) 50... Bd8 $2 {[%emt 0:02:55]} (50... Bh4 51. Be3 Bg3 $1 {[%mdl 512]}) 51. Be1 {[%emt 0:01:21]} Bf6 $2 {[%emt 0:01:15]} (51... Bc7 $1 $19 {[%cal Rc7f4]} 52. Bd2 b6) 52. Bf2 $1 $11 {[%emt 0:00:56]} Be7 {[%emt 0:04:02] ...Bd8 is the strong threat.} 53. Bg3 $1 {[%emt 0:01:15]} Bf8 {[%emt 0:01:31] White must now prevent ...Be7.} 54. Bf2 {[%emt 0:01:17]} Bg7 {[%emt 0:00:09] Hoping for ...Bb2.} (54... Be7 $5) 55. Be3 $2 {[%emt 0:01:05][%mdl 8192]} (55. Bd4 $1 $11 {and White is okay.} Bf8 56. Bf2) 55... Bb2 $1 $19 {[%emt 0:02:42]} 56. Bd2 {[%emt 0:01:01]} Bf6 {[%emt 0:09:49]} 57. Be1 {[%emt 0:00:21] [#] Prevents Bh4.} Bd8 $1 {[%emt 0:00:33]} 58. Kd4 {[%emt 0:00:34]} (58. a5 $142 Bf6 59. c6 bxc6 60. Kc5) 58... Bc7 {[%emt 0:01:39]} 59. Bd2 {[%emt 0:00:38] [#]} b5 $1 {[%emt 0:00:12]} 60. axb5 {[%emt 0:01:25]} axb5 {[%emt 0:00:02]} 61. Be3 {[%emt 0:02:03]} Ba5 {[%emt 0:00:13] Threatens to win with ...Bd8.} 62. Bf2 {[%emt 0:01:26]} Bd2 {[%emt 0:00:24]} 63. Bg3 {[%emt 0:00:05]} Bc1 {[%emt 0:00:19]} 64. c6 {[%emt 0:00:14]} Kd6 {[%emt 0:00:13] ( -> ...Bb2+)} 65. c7 {[%emt 0:00:05]} Bb2+ {[%emt 0:00:19] Weighted Error Value: White=0.85/Black=0.30} 0-1

[Event "FIDE CB Open 2022"]
[Site "Ceske Budejovice"]
[Date "2022.07.02"]
[Round "2.3"]
[White "Neuman, Petr"]
[Black "Vltavsky, Vladimir"]
[Result "1-0"]
[ECO "A11"]
[WhiteElo "2378"]
[BlackElo "2106"]
[Annotator "RC"]
[PlyCount "71"]
[EventDate "2022.07.01"]
[EventType "swiss"]
[EventCountry "CZE"]
[SourceTitle "playchess.com"]
[Source "ChessBase"]
[SourceQuality "1"]
[TimeControl "40/5400+30:1800+30"]

1. c4 {[%emt 0:00:08]} c6 {[%emt 0:10:52]} 2. Nf3 {[%emt 0:00:59]} Nf6 {[%emt 0:00:17]} 3. Nc3 {[%emt 0:00:20]} d5 {[%emt 0:00:17]} 4. e3 {[%emt 0:00:42]} e6 {[%emt 0:00:56]} 5. b3 {[%emt 0:00:49]} Be7 {[%emt 0:02:07]} 6. Bb2 {[%emt 0:01:28]} Nbd7 {[%emt 0:01:15]} 7. Qc2 {[%emt 0:02:47]} b6 {[%emt 0:02:43]} 8. d4 {[%emt 0:10:39]} Bb7 {[%emt 0:02:06]} 9. Bd3 {[%emt 0:03:25]} Rc8 {[%emt 0:00:19]} 10. O-O {[%emt 0:00:22]} Qc7 {[%emt 0:03:28]} 11. e4 {[%emt 0:06:29]} dxe4 {[%emt 0:01:41]} 12. Nxe4 {[%emt 0:00:11]} c5 {[%emt 0:03:04]} 13. Rfe1 {[%emt 0:10:09]} Nxe4 {[%emt 0:07:31]} 14. Bxe4 {[%emt 0:01:20]} Bxe4 {[%emt 0:00:08]} 15. Rxe4 {[%emt 0:02:30]} Nf6 {[%emt 0:01:43]} 16. Rh4 {[%emt 0:00:26]} cxd4 {[%emt 0:03:10]} 17. Nxd4 {[%emt 0:03:42]} h6 {[%emt 0:01:59]} 18. Nb5 {[%emt 0:14:59]} Qd7 {[%emt 0:04:11]} 19. Qe2 {[%emt 0:02:45]} O-O {[%emt 0:02:15]} 20. Rd1 {[%emt 0:02:04]} Qb7 {[%emt 0:00:36]} 21. Nd6 {[%emt 0:00:16]} Bxd6 {[%emt 0:00:13]} 22. Rxd6 {[%emt 0:00:06]} Qe7 {[%emt 0:01:22]} 23. Rd3 {[%emt 0:00:36]} Kh7 {[%emt 0:07:13]} 24. Qc2 {[%emt 0:12:34]} g6 {[%emt 0:03:44]} 25. Qd2 {[%emt 0:07:33]} Ng8 {[%emt 0:01:06]} 26. Rhd4 {[%emt 0:00:06]} e5 {[%emt 0:04:14]} 27. Rd7 {[%emt 0:00:12]} Qe6 {[%emt 0:00:04]} 28. Rxa7 {[%emt 0:02:33]} Nf6 {[%emt 0:00:34]} 29. h3 {[%emt 0:01:07]} Ra8 {[%emt 0:04:22]} 30. Rxa8 {[%emt 0:00:54]} Rxa8 {[%emt 0:00:04]} 31. a4 {[%emt 0:01:10]} Ne4 {[%emt 0:01:04]} 32. Qe3 {[%emt 0:00:29]} Nc5 {[%emt 0:00:09]} 33. Rd5 {[%emt 0:00:20]} f6 {[%emt 0:01:08]} 34. a5 {[%emt 0:02:40]} Rxa5 {[%emt 0:02:10]} 35. b4 {[%emt 0:00:22]} Ra2 {[%emt 0:00:05]} 36. Bc1 {[%emt 0:00:04]} 1-0